lending/lending_fUSD_20260204
["ID","MTS","AMOUNT","RATE_DAILY","PERIOD"]
[404486262,1770205840618,-500.0,0.00012836,2]
[404486263,1770205840628,-500.0,0.00012836,2]
[404486264,1770205840637,-500.0,0.00012836,2]
[404486265,1770205840646,-322.6107,0.00012836,2]
[404486266,1770205840656,-500.0,0.00012836,2]
[404486267,1770205840665,-500.0,0.00012836,2]
[404486268,1770205840675,-500.0,0.00012836,2]
[404486269,1770205840684,-626.10481314,0.00012836,2]
[404486270,1770205840693,-174.61919141,0.00012836,2]
[404486271,1770205840708,-209.40437684,0.00012836,2]
[404486272,1770205840719,-470.0,0.00012843,2]
[404486273,1770205840728,-200.0,0.00012843,2]
[404486274,1770205840737,-989.0,0.00012843,2]
[404486275,1770205840747,-217.15233878,0.00012891,2]
[404486276,1770205840757,-989.0,0.00012897,2]
[404486277,1770205840766,-169.62,0.000129,2]
[404486278,1770205840776,-158.29,0.00012913,2]
[404486279,1770205840786,-151.0,0.0001294,2]
[404486280,1770205840795,-949.57907636,0.00012943,2]
[404486281,1770205840804,-225.18697532,0.00012946,2]
[404486282,1770205840813,-989.0,0.00012952,2]
[404486283,1770205840823,-233.51889341,0.00013001,2]
[404486284,1770205840832,-989.0,0.00013007,2]
[404486285,1770205840841,-384.16634285,0.00013035,2]
[404486286,1770205840850,-500.0,0.00013055,2]
[404486287,1770205840860,-200.0,0.00013055,2]
[404486288,1770205840871,-500.0,0.00013055,2]
[404486289,1770205840880,-242.15909246,0.00013056,2]
[404486290,1770205840889,-989.0,0.00013062,2]
[404486291,1770205840898,-251.11897888,0.00013111,2]
[404486292,1770205840908,-1000.0,0.00013115,2]
[404486293,1770205840917,-200.0,0.00013116,2]
[404486294,1770205840926,-200.0,0.00013116,2]
[404486295,1770205840935,-989.0,0.00013117,2]
[404486296,1770205840944,-260.4103811,0.00013166,2]
[404486297,1770205840953,-989.0,0.00013171,2]
[404486298,1770205840962,-195.0,0.00013175,2]
[404486299,1770205840971,-158.29,0.00013187,2]
[404486300,1770205840980,-166.66,0.0001321,2]
[404486301,1770205840989,-270.0455652,0.00013221,2]
[404486302,1770205840999,-989.0,0.00013226,2]
[404486303,1770205841008,-200.0,0.00013247,2]
[404486304,1770205841017,-200.0,0.00013247,2]
[404486305,1770205841027,-280.03725112,0.00013276,2]
[404486306,1770205841036,-989.0,0.00013281,2]
[404486307,1770205841045,-500.0,0.00013329,2]
[404486308,1770205841054,-290.39862941,0.00013331,2]
[404486309,1770205841063,-166.66,0.00013351,2]
[404486310,1770205841072,-1680.0,0.00013363,2]
[404486311,1770205841080,-200.0,0.0001338,2]
[404486312,1770205841089,-200.0,0.0001338,2]
[404486313,1770205841098,-181.08010149,0.00013384,2]
[404486314,1770205841108,-301.1433787,0.00013386,2]
[404486315,1770205841118,-3240.0,0.00013425,2]
[404486316,1770205841127,-158.29,0.00013461,2]
[404486317,1770205841136,-166.66,0.00013482,2]
[404486318,1770205841144,-200.0,0.00013513,2]
[404486319,1770205841154,-200.0,0.00013513,2]
[404486320,1770205841163,-255.0,0.00013594,2]
[404486321,1770205841172,-3507.70665912,0.00013598,2]
[404486322,1770205841182,-500.0,0.00013603,2]
[404486323,1770205841192,-200.0,0.00013649,2]
[404486324,1770205841202,-200.0,0.00013649,2]
[404486325,1770205841211,-1110.59043438,0.00013663,2]
[404486326,1770205841221,-151.0,0.00013695,2]
[404486327,1770205841230,-472.03848132,0.00013698,2]
[404486328,1770205841240,-549.35023034,0.00013698,2]
[404486329,1770205841249,-500.0,0.00013698,2]
[404486330,1770205841259,-500.0,0.00013698,2]
[404486331,1770205841269,-500.0,0.00013698,2]
[404486332,1770205841278,-500.0,0.00013698,2]
[404486333,1770205841287,-500.0,0.00013698,2]
[404486334,1770205841296,-507.78,0.00013698,2]
[404486335,1770205841305,-500.0,0.00013698,2]
[404486336,1770205841315,-500.0,0.00013698,2]
[404486337,1770205841327,-500.0,0.00013698,2]
[404486338,1770205841342,-696.64,0.00013698,2]
[404486339,1770205841351,-696.64,0.00013698,2]
[404486340,1770205841360,-696.64,0.00013698,2]
[404486341,1770205841370,-696.64,0.00013698,2]
[404486342,1770205841379,-696.64,0.00013698,2]
[404486343,1770205841390,-696.64,0.00013698,2]
[404486344,1770205841399,-696.64,0.00013698,2]
[404486345,1770205841408,-696.64,0.00013698,2]
[404486346,1770205841418,-696.64,0.00013698,2]
[404486347,1770205841427,-696.64,0.00013698,2]
[404486348,1770205841436,-696.64,0.00013698,2]
[404486349,1770205841445,-696.64,0.00013698,2]
[404486350,1770205841455,-696.64,0.00013698,2]
[404486351,1770205841464,-696.64,0.00013698,2]
[404486352,1770205841473,-696.64,0.00013698,2]
[404486353,1770205841482,-500.0,0.00013698,2]
[404486354,1770205841492,-500.0,0.00013698,2]
[404486355,1770205841501,-500.0,0.00013698,2]
[404486356,1770205841510,-500.0,0.00013698,2]
[404486357,1770205841519,-500.0,0.00013698,2]
[404486358,1770205841528,-500.0,0.00013698,2]
[404486359,1770205841537,-500.0,0.00013698,2]
[404486360,1770205841547,-500.0,0.00013698,2]
[404486361,1770205841557,-500.0,0.00013698,2]
[404486362,1770205841566,-500.0,0.00013698,2]
[404486363,1770205841575,-500.0,0.00013698,2]
[404486364,1770205841584,-500.0,0.00013698,2]
[404486365,1770205841593,-500.0,0.00013698,2]
[404486366,1770205841604,-500.0,0.00013698,2]
[404486367,1770205841613,-500.0,0.00013698,2]
[404486368,1770205841622,-500.0,0.00013698,2]
[404486369,1770205841631,-500.0,0.00013698,2]
[404486370,1770205841640,-500.0,0.00013698,2]
[404486371,1770205841650,-500.0,0.00013698,2]
[404486372,1770205841659,-500.0,0.00013698,2]
[404486373,1770205841668,-500.0,0.00013698,2]
[404486374,1770205841677,-500.0,0.00013698,2]
[404486375,1770205841686,-521.96758579,0.00013698,2]
[404486376,1770205841696,-500.0,0.00013698,2]
[404486377,1770205841705,-500.0,0.00013698,2]
[404486378,1770205841719,-500.0,0.00013698,2]
[404486379,1770205841728,-500.0,0.00013698,2]
[404486380,1770205841737,-500.0,0.00013698,2]
[404486381,1770205841747,-500.0,0.00013698,2]
[404486382,1770205841759,-500.0,0.00013698,2]
[404486383,1770205841770,-500.0,0.00013698,2]
[404486384,1770205841781,-500.0,0.00013698,2]
[404486385,1770205841790,-500.0,0.00013698,2]
[404486386,1770205841801,-500.0,0.00013698,2]
[404486387,1770205841811,-500.0,0.00013698,2]
[404486388,1770205841820,-500.0,0.00013698,2]
[404486389,1770205841830,-248.79623194,0.00013698,2]
[404486390,1770205841840,-500.0,0.00013698,2]
[404486391,1770205841851,-500.0,0.00013698,2]
[404486392,1770205841862,-500.0,0.00013698,2]
[404486393,1770205841873,-500.0,0.00013698,2]
[404486394,1770205841886,-500.0,0.00013698,2]
[404486395,1770205841896,-500.0,0.00013698,2]
[404486396,1770205841906,-500.0,0.00013698,2]
[404486397,1770205841916,-500.0,0.00013698,2]
[404486398,1770205841926,-503.3149344,0.00013698,2]
[404486399,1770205841947,-500.0,0.00013698,2]
[404486400,1770205841958,-500.0,0.00013698,2]
[404486401,1770205841968,-500.0,0.00013698,2]
[404486402,1770205841978,-500.0,0.00013698,2]
[404486403,1770205841988,-500.0,0.00013698,2]
[404486404,1770205841999,-500.0,0.00013698,2]
[404486405,1770205842010,-500.0,0.00013698,2]
[404486406,1770205842020,-500.0,0.00013698,2]
[404486407,1770205842030,-500.0,0.00013698,2]
[404486408,1770205842040,-500.0,0.00013698,2]
[404486409,1770205842053,-500.0,0.00013698,2]
[404486410,1770205842063,-516.54058196,0.00013698,2]
[404486411,1770205842073,-500.0,0.00013698,2]
[404486412,1770205842083,-500.0,0.00013698,2]
[404486413,1770205842093,-500.0,0.00013698,2]
[404486414,1770205842104,-500.0,0.00013698,2]
[404486415,1770205842114,-508.97591607,0.00013698,2]
[404486416,1770205842124,-500.0,0.00013698,2]
[404486417,1770205842135,-154.56738754,0.00013698,2]
[404486418,1770205842145,-693.64,0.00013698,2]
[404486419,1770205842155,-693.64,0.00013698,2]
[404486420,1770205842165,-693.64,0.00013698,2]
[404486421,1770205842176,-693.64,0.00013698,2]
[404486422,1770205842185,-693.64,0.00013698,2]
[404486423,1770205842196,-693.64,0.00013698,2]
[404486424,1770205842206,-693.64,0.00013698,2]
[404486425,1770205842216,-693.64,0.00013698,2]
[404486426,1770205842227,-693.64,0.00013698,2]
[404486427,1770205842237,-693.64,0.00013698,2]
[404486428,1770205842247,-693.64,0.00013698,2]
[404486429,1770205842258,-693.64,0.00013698,2]
[404486430,1770205842268,-693.64,0.00013698,2]
[404486431,1770205842278,-693.64,0.00013698,2]
[404486432,1770205842292,-693.64,0.00013698,2]
[404486433,1770205842302,-500.0,0.00013698,2]
[404486434,1770205842312,-500.0,0.00013698,2]
[404486435,1770205842322,-500.0,0.00013698,2]
[404486436,1770205842332,-500.0,0.00013698,2]
[404486437,1770205842343,-500.0,0.00013698,2]
[404486438,1770205842352,-500.0,0.00013698,2]
[404486439,1770205842362,-500.0,0.00013698,2]
[404486440,1770205842372,-500.0,0.00013698,2]
[404486441,1770205842382,-234.378992,0.00013698,2]
[404486442,1770205842392,-500.0,0.00013698,2]
[404486443,1770205842402,-500.0,0.00013698,2]
[404486444,1770205842412,-500.0,0.00013698,2]
[404486445,1770205842424,-500.0,0.00013698,2]
[404486446,1770205842434,-500.0,0.00013698,2]
[404486447,1770205842443,-500.0,0.00013698,2]
[404486448,1770205842453,-500.0,0.00013698,2]
[404486449,1770205842463,-403.2474264,0.00013698,2]
[404486450,1770205842714,-500.0,0.00013698,2]
[404486451,1770205842725,-500.0,0.00013698,2]
[404486452,1770205842735,-500.0,0.00013698,2]
[404486453,1770205842745,-500.0,0.00013698,2]
[404486454,1770205842755,-500.0,0.00013698,2]
[404486455,1770205842768,-513.21673603,0.00013698,2]
[404486456,1770205842778,-12291.25,0.00013699,2]
[404486457,1770205842788,-13453.2,0.00013699,2]
[404486458,1770205842797,-447.4,0.00013699,2]
[404486459,1770205842807,-200.0,0.00013699,2]
[404486460,1770205842816,-510.52,0.00013699,2]
[404486461,1770205842826,-2361.0,0.00013699,2]
[404486462,1770205842836,-773.56,0.00013699,2]
[404486463,1770205842845,-158.29,0.00013735,2]
[404486464,1770205842856,-166.66,0.00013752,2]
[404486465,1770205842866,-2361.0,0.00013754,2]
[404486466,1770205842876,-166.66,0.00013754,2]
[404486467,1770205842886,-1600.0,0.00013778,2]
[404486468,1770205842896,-8454.13561824,0.00013793,2]
[404486469,1770205842906,-2361.0,0.00013809,2]
[404486470,1770205842916,-2361.0,0.00013863,2]
[404486471,1770205842926,-259.19,0.000139,2]
[404486472,1770205842936,-2361.0,0.00013918,2]
[404486473,1770205842945,-187.78006525,0.00013932,2]
[404486474,1770205842959,-250.0,0.00013935,2]
[404486475,1770205842969,-2361.0,0.00013973,2]
[404486476,1770205842978,-773.56,0.00013973,2]
[404486477,1770205842988,-158.29,0.00014009,2]
[404486478,1770205842997,-166.66,0.00014027,2]
[404486479,1770205843007,-2361.0,0.00014028,2]
[404486480,1770205843016,-151.0,0.00014048,2]
[404486481,1770205843026,-11518.0,0.00014051,2]
[404486482,1770205843036,-8249.52,0.00014072,2]
[404486483,1770205843045,-3507.70665911,0.00014076,2]
[404486484,1770205843055,-2361.0,0.00014083,2]
[404486485,1770205843065,-1000.0,0.00014125,2]
[404486486,1770205843075,-2361.0,0.00014137,2]
[404486487,1770205843084,-500.0,0.00014151,2]
[404486488,1770205843094,-166.66,0.00014153,2]
[404486489,1770205843104,-949.57907636,0.00014182,2]
[404486490,1770205843114,-2361.0,0.00014192,2]
[404486491,1770205843124,-300.162,0.00014194,2]
[404486492,1770205843138,-416.41838838,0.000142,2]
[404486493,1770205843148,-334.5472959,0.00014205,2]
[404486494,1770205843161,-2361.0,0.00014247,2]
[404486495,1770205843170,-775.21,0.00014247,2]
[404486496,1770205843180,-158.29,0.00014283,2]
[404486497,1770205843190,-166.66,0.00014299,2]
[404486498,1770205843200,-2361.0,0.00014302,2]
[404486499,1770205843210,-2361.0,0.00014357,2]
[404486500,1770205843220,-447.4,0.00014384,2]
[404486501,1770205843230,-2361.0,0.00014411,2]
[404486502,1770205843239,-2361.0,0.00014466,2]
[404486503,1770205843249,-194.72792766,0.0001448,2]
[404486504,1770205843259,-664.4342739,0.000145,2]
[404486505,1770205843269,-1110.59043438,0.00014511,2]
[404486506,1770205843279,-1088.73,0.00014511,2]
[404486507,1770205843288,-169.62,0.00014513,2]
[404486508,1770205843298,-2361.0,0.00014521,2]
[404486509,1770205843307,-155.0,0.00014549,2]
[404486510,1770205843317,-3507.70665911,0.00014554,2]
[404486511,1770205843327,-158.29,0.00014557,2]
[404486512,1770205843337,-693.64,0.00014575,2]
[404486514,1770205843346,-2361.0,0.00014576,2]
[404486516,1770205843358,-696.64,0.00014598,2]
[404486518,1770205843367,-500.0,0.00014598,2]
[404486519,1770205843377,-500.0,0.00014599,2]
[404486521,1770205843387,-500.0,0.00014599,2]
[404486523,1770205843396,-507.78,0.00014599,2]
[404486525,1770205843407,-500.0,0.00014599,2]
[404486527,1770205843416,-500.0,0.00014599,2]
[404486528,1770205843427,-500.0,0.00014599,2]
[404486529,1770205843437,-500.0,0.00014599,2]
[404486530,1770205843446,-500.0,0.00014599,2]
[404486532,1770205843456,-500.0,0.00014599,2]
[404486533,1770205843466,-500.0,0.00014599,2]
[404486534,1770205843476,-500.0,0.00014599,2]
[404486535,1770205843486,-500.0,0.00014599,2]
[404486536,1770205843495,-500.0,0.00014599,2]
[404486537,1770205843505,-568.24850317,0.000146,2]
[404486538,1770205843515,-500.43942892,0.000146,2]
[404486539,1770205843524,-500.0,0.000146,2]
[404486540,1770205843534,-500.0,0.000146,2]
[404486541,1770205843543,-500.0,0.000146,2]
[404486542,1770205843553,-500.0,0.000146,2]
[404486543,1770205843562,-438.12120673,0.000146,2]
[404486544,1770205843572,-500.0,0.000146,2]
[404486545,1770205843581,-501.46275829,0.000146,2]
[404486546,1770205843591,-500.0,0.000146,2]
[404486547,1770205843600,-500.0,0.000146,2]
[404486548,1770205843610,-500.0,0.000146,2]
[404486549,1770205843619,-500.0,0.000146,2]
[404486550,1770205843628,-500.0,0.000146,2]
[404486551,1770205843638,-500.35948587,0.000146,2]
[404486552,1770205843648,-500.0,0.000146,2]
[404486553,1770205843658,-500.0,0.000146,2]
[404486554,1770205843668,-500.0,0.000146,2]
[404486555,1770205843677,-500.0,0.000146,2]
[404486556,1770205843686,-207.06822891,0.000146,2]
[404486557,1770205843697,-500.0,0.000146,2]
[404486558,1770205843709,-422.32864224,0.000146,2]
[404486559,1770205843718,-500.0,0.000146,2]
[404486560,1770205843728,-500.0,0.000146,2]
[404486561,1770205843748,-500.0,0.000146,2]
[404486562,1770205843759,-500.6069839,0.000146,2]
[404486563,1770205843769,-2361.0,0.00014631,2]
[404486564,1770205843780,-250.0,0.00014651,5]
[404486565,1770205843790,-250.0,0.00014651,5]
[404486566,1770205843801,-250.0,0.00014651,5]
[404486567,1770205843810,-250.0,0.00014651,5]
[404486568,1770205843821,-250.0,0.00014651,5]
[404486569,1770205843831,-250.0,0.00014651,5]
[404486570,1770205843842,-250.0,0.00014651,5]
[404486571,1770205843853,-250.0,0.00014651,5]
[404486572,1770205843864,-250.0,0.00014651,5]
[404486573,1770205843874,-250.0,0.00014651,5]
[404486574,1770205843884,-250.0,0.00014651,5]
[404486575,1770205843894,-250.0,0.00014651,5]
[404486576,1770205843904,-250.0,0.00014651,5]
[404486577,1770205843915,-185.602916,0.00014651,5]
[404486578,1770205843925,-2361.0,0.00014685,2]
[404486579,1770205843935,-2351.0,0.00014699,2]
[404486580,1770205843945,-2361.0,0.0001474,2]
[404486581,1770205843956,-433.0,0.00014783,2]
[404486582,1770205843966,-151.0,0.00014792,2]
[404486583,1770205843976,-2361.0,0.00014795,2]
[404486584,1770205843986,-158.29,0.00014831,2]
[404486585,1770205843996,-2361.0,0.0001485,2]
[404486586,1770205844006,-4053.2427158,0.000149,2]
[404486587,1770205844016,-155.0,0.00014904,2]
[404486588,1770205844025,-2361.0,0.00014904,2]
[404486589,1770205844035,-150.0,0.00014945,7]
[404486590,1770205844046,-160.068675,0.00014945,7]
[404486591,1770205844057,-170.13735,0.00014945,7]
[404486592,1770205844067,-180.206026,0.00014945,7]
[404486593,1770205844077,-190.274701,0.00014945,7]
[404486594,1770205844088,-200.343376,0.00014945,7]
[404486595,1770205844098,-210.412052,0.00014945,7]
[404486596,1770205844108,-220.480727,0.00014945,7]
[404486597,1770205844118,-230.549403,0.00014945,7]
[404486598,1770205844128,-240.618078,0.00014945,7]
[404486599,1770205844140,-2373.22977838,0.00014959,2]
[404486600,1770205844150,-664.43427389,0.00014986,2]
[404486601,1770205844161,-1088.73,0.0001499,2]
[404486602,1770205844170,-666.0,0.00014999,2]
[404486603,1770205844182,-31626.0,0.00015,2]
[404486604,1770205844193,-250.0,0.00015,2]
[404486605,1770205844203,-675.51296807,0.00015002,2]
[404486606,1770205844212,-201.93286099,0.00015028,2]
[404486607,1770205844222,-150.0,0.00015031,7]
[404486608,1770205844231,-233.059338,0.00015031,7]
[404486609,1770205844241,-316.118676,0.00015031,7]
[404486610,1770205844250,-399.178014,0.00015031,7]
[404486611,1770205844260,-482.237353,0.00015031,7]
[404486612,1770205844270,-565.296691,0.00015031,7]
[404486613,1770205844279,-648.356029,0.00015031,7]
[404486614,1770205844289,-731.415368,0.00015031,7]
[404486615,1770205844298,-814.474706,0.00015031,7]
[404486616,1770205844307,-897.534044,0.00015031,7]
[404486617,1770205844317,-3507.70665911,0.00015032,2]
[404486618,1770205844327,-247.43,0.00015059,2]
[404486619,1770205844336,-447.4,0.00015068,2]
[404486620,1770205844346,-450.0,0.00015068,2]
[404486621,1770205844355,-158.29,0.00015105,2]
[404486622,1770205844365,-1009.49329008,0.00015148,2]
[404486623,1770205844375,-1000.0,0.00015148,2]
[404486624,1770205844384,-1000.0,0.00015148,2]
[404486625,1770205844393,-1000.0,0.00015148,2]
[404486626,1770205844403,-728.46930276,0.00015148,2]
[404486627,1770205844412,-1000.0,0.00015148,2]
[404486628,1770205844422,-1115.98913176,0.00015148,2]
[404486629,1770205844431,-1000.0,0.00015148,2]
[404486630,1770205844440,-796.55427389,0.00015148,2]
[404486631,1770205844450,-722.13817411,0.00015148,2]
[404486632,1770205844460,-500.0,0.00015148,2]
[404486633,1770205844469,-500.0,0.00015148,2]
[404486634,1770205844478,-1000.0,0.00015148,2]
[404486635,1770205844488,-509.90234857,0.00015148,2]
[404486636,1770205844498,-615.04992732,0.00015148,2]
[404486637,1770205844507,-246.68559216,0.00015148,2]
[404486638,1770205844516,-654.35091807,0.00015148,2]
[404486639,1770205844526,-179.27,0.00015152,2]
[404486640,1770205844535,-4053.24271575,0.00015233,2]
[404486641,1770205844544,-155.0,0.00015259,2]
[404486642,1770205844554,-394.89579152,0.00015304,2]
[404486643,1770205844563,-1042.13624168,0.00015304,2]
[404486644,1770205844573,-1838.45185867,0.00015304,2]
[404486645,1770205844582,-2750.21402999,0.00015304,2]
[404486646,1770205844591,-3721.1328,0.00015304,2]
[404486647,1770205844600,-1600.0,0.00015309,2]
[404486648,1770205844610,-1110.59043438,0.00015358,2]
[404486649,1770205844619,-8454.13561824,0.00015358,2]
[404486650,1770205844628,-158.29,0.00015379,2]
[404486651,1770205844638,-1088.73,0.00015411,2]
[404486652,1770205844647,-949.57907636,0.00015422,2]
[404486653,1770205844657,-664.43427389,0.00015471,2]
[404486654,1770205844666,-3507.70665911,0.0001551,2]
[404486655,1770205844676,-259.76,0.00015549,2]
[404486656,1770205844685,-4053.24271575,0.00015567,2]
[404486657,1770205844694,-346.92554585,0.00015574,2]
[404486658,1770205844705,-209.40437684,0.00015576,2]
[404486659,1770205844717,-155.0,0.00015613,2]
[404486660,1770205844726,-500.0,0.00015616,2]
[404486661,1770205844736,-3482.0,0.00015637,2]
[404486662,1770205844746,-1410.0,0.00015637,2]
[404486663,1770205844756,-1335.0,0.00015637,2]
[404486664,1770205844767,-616.0,0.00015637,2]
[404486665,1770205844776,-150.0,0.00015637,2]
[404486666,1770205844785,-1271.0,0.00015637,2]
[404486667,1770205844795,-250.0,0.00015637,2]
[404486668,1770205844804,-6580.0,0.00015637,2]
[404486669,1770205844814,-568.0,0.00015637,2]
[404486670,1770205844823,-1317.0,0.00015637,2]
[404486671,1770205844832,-2476.46,0.00015637,2]
[404486672,1770205844842,-150.0,0.00015645,2]
[404486673,1770205844851,-3719.43288921,0.00015645,2]
[404486674,1770205844860,-150.0,0.00015645,2]
[404486675,1770205844870,-13951.84751777,0.00015645,2]
[404486676,1770205844880,-150.0,0.00015645,2]
[404486677,1770205844889,-2828.45580677,0.00015645,2]
[404486678,1770205844899,-158.29,0.00015653,2]
[404486679,1770205844908,-1000.0,0.00015695,2]
[404486680,1770205844917,-1500.0,0.00015696,2]
[404486681,1770205844926,-1500.0,0.00015696,2]
[404486682,1770205844936,-1586.3781423,0.00015696,2]
[404486683,1770205844946,-702.75959751,0.00015696,2]
[404486684,1770205844956,-500.0,0.00015696,2]
[404486685,1770205844965,-1500.0,0.00015696,2]
[404486686,1770205844974,-8249.52,0.00015743,2]
[404486687,1770205844984,-447.4,0.00015753,2]
[404486688,1770205844994,-4053.24271575,0.000159,2]
[404486689,1770205845003,-200.0,0.00015918,2]
[404486690,1770205845014,-158.3,0.00015927,2]
[404486691,1770205845024,-664.43427389,0.00015957,2]
[404486692,1770205845034,-3507.70665911,0.00015988,2]
[404486693,1770205845043,-500.0,0.0001604,2]
[404486694,1770205845053,-736.0,0.00016058,2]
[404486695,1770205845063,-2008.0,0.000161,2]
[404486696,1770205845072,-2000.0,0.000161,2]
[404486697,1770205845082,-2000.0,0.000161,2]
[404486698,1770205845091,-1088.73,0.00016106,2]
[404486699,1770205845101,-3533.29,0.00016116,2]
[404486700,1770205845115,-25968.81,0.00016116,2]
[404486701,1770205845130,-9999.99,0.00016116,2]
[404486702,1770205845140,-217.15233878,0.00016124,2]
[404486703,1770205845149,-169.62,0.00016125,2]
[404486704,1770205845233,-3292.0,0.00016169,2]
[404486705,1770205845243,-179.27,0.00016199,2]
[404486706,1770205845253,-5000.0,0.000162,5]
[404486707,1770205845262,-1110.59043438,0.00016205,2]
[404486708,1770205845271,-4053.24271575,0.00016233,2]
[404486709,1770205845281,-696.64,0.00016238,2]
[404486710,1770205845290,-500.0,0.00016238,2]
[404486711,1770205845299,-693.64,0.00016243,2]
[404486712,1770205845309,-2000.0,0.00016244,2]
[404486713,1770205845318,-2000.0,0.00016244,2]
[404486714,1770205845327,-2000.0,0.00016244,2]
[404486715,1770205845337,-500.0,0.00016287,2]
[404486716,1770205845346,-500.0,0.00016287,2]
[404486717,1770205845355,-507.78,0.00016287,2]
[404486718,1770205845364,-500.0,0.00016287,2]
[404486719,1770205845374,-500.0,0.00016287,2]
[404486720,1770205845383,-500.0,0.00016287,2]
[404486721,1770205845392,-272.1278825,0.00016287,2]
[404486722,1770205845401,-500.0,0.00016287,2]
[404486723,1770205845410,-500.0,0.00016287,2]
[404486724,1770205845419,-500.0,0.00016287,2]
[404486725,1770205845428,-500.0,0.00016287,2]
[404486726,1770205845438,-500.0,0.00016287,2]
[404486727,1770205845447,-500.0,0.00016287,2]
[404486728,1770205845456,-2000.0,0.000163,2]
[404486729,1770205845466,-200.0,0.00016307,2]
[404486730,1770205845475,-2000.0,0.00016438,2]
[404486731,1770205845484,-447.4,0.00016438,2]
[404486733,1770205845493,-450.0,0.00016438,2]
[404486735,1770205845502,-664.43427389,0.00016443,2]
[404486737,1770205845511,-3507.70665911,0.00016466,2]
[404486739,1770205845520,-3000.0,0.000165,2]
[404486740,1770205845530,-200.0,0.00016515,2]
[404486741,1770205845539,-487.0364942,0.00016541,2]
[404486742,1770205845548,-470.24295799,0.00016541,2]
[404486743,1770205845557,-206.0,0.00016559,2]
[404486744,1770205845566,-4053.24271575,0.00016567,2]
[404486745,1770205845575,-150.0,0.00016636,2]
[404486746,1770205845584,-150.0,0.00016636,2]
[404486747,1770205845593,-150.0,0.00016636,2]
[404486748,1770205845602,-150.0,0.00016636,2]
[404486749,1770205845612,-150.0,0.00016636,2]
[404486751,1770205845621,-150.0,0.00016636,2]
[404486753,1770205845630,-150.0,0.00016636,2]
[404486755,1770205845639,-150.0,0.00016636,2]
[404486757,1770205845648,-2000.0,0.00016638,2]
[404486758,1770205845658,-949.57907636,0.00016661,2]
[404486759,1770205845667,-225.18697532,0.00016672,2]
[404486760,1770205845676,-300.0,0.00016699,2]
[404486761,1770205845685,-10000.0,0.000167,2]
[404486762,1770205845694,-3000.0,0.000167,3]
[404486763,1770205845706,-165.74,0.00016712,2]
[404486764,1770205845715,-300.0,0.00016791,2]
[404486765,1770205845724,-503.65232804,0.00016792,2]
[404486766,1770205845734,-2500.0,0.00016792,2]
[404486767,1770205845743,-2500.0,0.00016792,2]
[404486769,1770205845752,-300.0,0.00016799,2]
[404486771,1770205845761,-10000.0,0.000168,2]
[404486773,1770205845771,-645.31,0.00016828,2]
[404486774,1770205845780,-2000.0,0.00016838,2]
[404486775,1770205845789,-1600.0,0.00016839,2]
[404486776,1770205845798,-300.0,0.00016889,2]
[404486777,1770205845807,-300.0,0.00016899,2]
[404486778,1770205845815,-206.0,0.00016899,2]
[404486779,1770205845824,-10000.0,0.000169,2]
[404486780,1770205845834,-4053.24271575,0.000169,2]